[Event "56th Ilmar Raud Memorial 2022"]
[Site "Viljandi"]
[Date "2022.07.10"]
[Round "9.5"]
[White "Tobak, Mikhail"]
[Black "Medar, Marti"]
[Result "1-0"]
[ECO "B07"]
[WhiteElo "2307"]
[BlackElo "2066"]
[Annotator "RC"]
[PlyCount "95"]
[EventDate "2022.07.05"]
[EventType "swiss"]
[EventCountry "EST"]
[SourceTitle "playchess.com"]
[Source "ChessBase"]
[SourceQuality "1"]
[TimeControl "40/5400+30:900+30"]

1. e4 {[%emt 0:00:04]} d6 {[%emt 0:00:07]} 2. d4 {[%emt 0:00:05]} Nf6 {[%emt 0:00:05]} 3. Nc3 {[%emt 0:00:03]} Nbd7 {[%emt 0:00:05]} 4. f4 {[%emt 0:00:18]} e5 {[%emt 0:00:11]} 5. Nf3 {[%emt 0:00:04]} exd4 {[%emt 0:00:13]} 6. Qxd4 {[%emt 0:00:05]} c6 {[%emt 0:00:17]} 7. Be3 {[%emt 0:00:28]} d5 {[%emt 0:00:18]} 8. e5 {[%emt 0:00:07]} Bc5 {[%emt 0:01:17]} 9. Qd2 {[%emt 0:00:05]} Bxe3 {[%emt 0:09:06]} 10. Qxe3 {[%emt 0:00:07]} Ng4 {[%emt 0:00:23]} 11. Qd4 {[%emt 0:04:25]} Qb6 {[%emt 0:01:49]} 12. Nd1 {[%emt 0:06:04]} Qxd4 {[%emt 0:11:27]} 13. Nxd4 {[%emt 0:00:04]} Nc5 {[%emt 0:00:15]} 14. c4 {[%emt 0:06:07]} Ne6 {[%emt 0:05:31]} 15. Nxe6 {[%emt 0:01:12]} fxe6 {[%emt 0:05:28]} 16. Be2 {[%emt 0:02:59]} Nh6 {[%emt 0:00:13]} 17. Ne3 {[%emt 0:02:55]} d4 {[%emt 0:09:26]} 18. Nc2 {[%emt 0:12:03]} c5 {[%emt 0:00:29]} 19. O-O {[%emt 0:04:00]} Bd7 {[%emt 0:02:26]} 20. Bd3 {[%emt 0:07:22]} a5 {[%emt 0:06:00]} 21. h3 {[%emt 0:04:07]} Ke7 {[%emt 0:03:29]} 22. g4 {[%emt 0:03:40]} Raf8 {[%emt 0:02:20]} 23. Be4 {[%emt 0:03:34]} g5 {[%emt 0:12:40]} 24. Ne1 {[%emt 0:05:38]} Rxf4 {[%emt 0:03:32]} 25. Rxf4 {[%emt 0:02:33]} gxf4 {[%emt 0:00:03]} 26. Nd3 {[%emt 0:01:00]} b6 {[%emt 0:04:32]} 27. g5 {[%emt 0:04:39]} Nf7 {[%emt 0:04:55]} 28. h4 {[%emt 0:00:14]} Nd8 {[%emt 0:04:34]} 29. Nxf4 {[%emt 0:03:41]} Be8 {[%emt 0:04:28]} 30. Re1 {[%emt 0:05:45]} Rf8 {[%emt 0:03:31]} 31. Rf1 {[%emt 0:02:13]} Rh8 {[%emt 0:00:01]} 32. Kh2 {[%emt 0:01:40]} Nc6 {[%emt 0:01:14]} 33. Nd3 {[%emt 0:05:30]} Bg6 {[%emt 0:00:38]} 34. Bxg6 {[%emt 0:00:58]} hxg6 {[%emt 0:00:02]} 35. Kg3 {[%emt 0:00:07]} Nb4 {[%emt 0:04:21]} 36. Nf4 {[%emt 0:03:23]} Rg8 {[%emt 0:00:15]} 37. Rf2 {[%emt 0:03:29]} Nxa2 {[%emt 0:00:38]} 38. h5 {[%emt 0:01:06]} gxh5 {[%emt 0:00:15]} 39. Kh4 {[%emt 0:00:27]} Nb4 {[%emt 0:01:19]} 40. Kxh5 {[%emt 0:00:00]} Rh8+ {[%emt 0:00:00]} 41. Kg6 {[%emt 0:02:07]} Rf8 {[%emt 0:08:44]} 42. Kh7 {[%emt 0:03:33]} Rf7+ {[%emt 0:04:35]} 43. Kh6 {[%emt 0:00:53]} Nc6 {[%emt 0:02:03]} 44. g6 {[%emt 0:01:54]} Nxe5 {[%emt 0:02:38]} 45. gxf7 {[%emt 0:00:26]} Nxf7+ {[%emt 0:00:26]} 46. Kg7 {[%emt 0:00:15]} Ng5 {[%emt 0:01:21]} 47. Re2 {[%emt 0:00:16]} Kd6 {[%emt 0:00:38]} 48. Kg6 {[%emt 0:17:45]} 1-0

[Event "56th Ilmar Raud Memorial 2022"]
[Site "Viljandi"]
[Date "2022.07.10"]
[Round "9.6"]
[White "Kanep, Meelis"]
[Black "Sinitsina, Anastassia"]
[Result "1-0"]
[ECO "D76"]
[WhiteElo "2417"]
[BlackElo "2175"]
[Annotator "RC"]
[PlyCount "111"]
[EventDate "2022.07.05"]
[EventType "swiss"]
[EventCountry "EST"]
[SourceTitle "playchess.com"]
[Source "ChessBase"]
[SourceQuality "1"]
[TimeControl "40/5400+30:900+30"]

1. Nf3 {[%emt 0:00:55]} Nf6 {[%emt 0:00:10]} 2. g3 {[%emt 0:00:16]} g6 {[%emt 0:00:41]} 3. Bg2 {[%emt 0:00:06]} Bg7 {[%emt 0:00:04]} 4. O-O {[%emt 0:00:10]} O-O {[%emt 0:00:07]} 5. c4 {[%emt 0:01:07]} d5 {[%emt 0:03:26]} 6. cxd5 {[%emt 0:07:02]} Nxd5 {[%emt 0:00:06]} 7. d4 {[%emt 0:02:13]} Nc6 {[%emt 0:01:37]} 8. e4 {[%emt 0:09:44]} Nb6 {[%emt 0:00:14]} 9. d5 {[%emt 0:00:26]} Na5 {[%emt 0:01:14]} 10. Nc3 {[%emt 0:03:11]} c6 {[%emt 0:04:20]} 11. Re1 {[%emt 0:12:58]} Bd7 {[%emt 0:13:30]} 12. Bf4 {[%emt 0:07:35]} Nac4 {[%emt 0:01:18]} 13. Qb3 {[%emt 0:01:39]} Rc8 {[%emt 0:08:52]} 14. dxc6 {[%emt 0:04:34]} Rxc6 {[%emt 0:02:08]} 15. e5 {[%emt 0:00:40]} Qc8 {[%emt 0:12:37]} 16. Ne4 {[%emt 0:20:43]} Nd5 {[%emt 0:02:10]} 17. Bg5 {[%emt 0:06:26]} Rb6 {[%emt 0:09:13]} 18. Qd1 {[%emt 0:00:44]} Be6 {[%emt 0:00:47]} 19. Rc1 {[%emt 0:03:08]} Rxb2 {[%emt 0:01:04]} 20. Qd4 {[%emt 0:00:17]} Rb4 {[%emt 0:02:26]} 21. Qxa7 {[%emt 0:01:40]} Qa8 {[%emt 0:00:42]} 22. Qxa8 {[%emt 0:00:35]} Rxa8 {[%emt 0:00:04]} 23. Nc5 {[%emt 0:03:35]} Rxa2 {[%emt 0:01:09]} 24. Nd4 {[%emt 0:03:59]} Nc7 {[%emt 0:01:45]} 25. Ndxe6 {[%emt 0:02:49]} fxe6 {[%emt 0:02:10]} 26. Bxe7 {[%emt 0:00:35]} Kf7 {[%emt 0:04:23]} 27. Nxe6 {[%emt 0:00:57]} Kxe7 {[%emt 0:00:07]} 28. Nxc7 {[%emt 0:00:05]} Nb6 {[%emt 0:02:02]} 29. Bxb7 {[%emt 0:01:37]} Rbb2 {[%emt 0:02:49]} 30. Nd5+ {[%emt 0:01:24]} Nxd5 {[%emt 0:00:07]} 31. Bxd5 {[%emt 0:00:04]} Ra7 {[%emt 0:00:34]} 32. f4 {[%emt 0:00:38]} Rd7 {[%emt 0:00:37]} 33. Bf3 {[%emt 0:01:18]} Bh6 {[%emt 0:01:01]} 34. Rc8 {[%emt 0:01:03]} Bf8 {[%emt 0:00:48]} 35. Rec1 {[%emt 0:00:43]} Rbd2 {[%emt 0:01:05]} 36. Bg4 {[%emt 0:00:19]} Ra7 {[%emt 0:00:15]} 37. R8c7+ {[%emt 0:00:50]} Rxc7 {[%emt 0:00:06]} 38. Rxc7+ {[%emt 0:00:07]} Ke8 {[%emt 0:00:07]} 39. Rxh7 {[%emt 0:00:33]} Bc5+ {[%emt 0:00:04]} 40. Kf1 {[%emt 0:00:00]} Rf2+ {[%emt 0:00:00]} 41. Ke1 {[%emt 0:00:44]} Rb2 {[%emt 0:00:28]} 42. Be2 {[%emt 0:03:47]} Bg1 {[%emt 0:01:45]} 43. Kf1 {[%emt 0:03:48]} Bc5 {[%emt 0:00:55]} 44. Rg7 {[%emt 0:03:48]} Rb1+ {[%emt 0:00:27]} 45. Kg2 {[%emt 0:00:06]} Rb2 {[%emt 0:00:05]} 46. Kf3 {[%emt 0:00:07]} Bg1 {[%emt 0:00:05]} 47. h4 {[%emt 0:01:08]} Rb6 {[%emt 0:00:20]} 48. Bd3 {[%emt 0:03:15]} Rb3 {[%emt 0:00:05]} 49. Ke2 {[%emt 0:00:15]} Rb2+ {[%emt 0:00:29]} 50. Kf1 {[%emt 0:00:12]} Be3 {[%emt 0:00:13]} 51. Rxg6 {[%emt 0:00:18]} Rf2+ {[%emt 0:00:18]} 52. Ke1 {[%emt 0:00:06]} Rh2 {[%emt 0:00:28]} 53. f5 {[%emt 0:02:20]} Bd4 {[%emt 0:00:07]} 54. Rg8+ {[%emt 0:00:31]} Kd7 {[%emt 0:00:56]} 55. Bb5+ {[%emt 0:01:45]} Kc7 {[%emt 0:00:02]} 56. f6 {[%emt 0:02:13]} 1-0